bitfinex/quotes_ETHUSD_20241122
["timestamp","ask_amount","ask_price","bid_price","bid_amount"]
[1732313525779,0.55,3297.2,3294.9,0.03033729]
[1732313525981,0.55,3297.2,3294.4,4.52281804]
[1732313525982,0.03032488,3297.1,3295.0,0.03542731]
[1732313526164,0.03032488,3297.1,3294.5,0.03034149]
[1732313526528,0.03032488,3297.1,3294.6,0.03542731]
[1732313526732,0.03032488,3297.1,3294.7,0.03034174]
[1732313527088,0.03032488,3297.1,3294.8,0.03548594]
[1732313527300,0.03032488,3297.1,3294.9,0.03034173]
[1732313529988,0.03032488,3297.1,3294.6,0.03034171]
[1732313530185,0.03032488,3297.1,3294.7,0.03441793]
[1732313530496,0.03032488,3297.1,3294.7,0.06476049]
[1732313531226,0.03032488,3297.1,3294.7,0.03034256]
[1732313531383,0.03032488,3297.1,3294.2,0.1493577]
[1732313531384,0.03032488,3297.1,3294.3,0.03034383]
[1732313531591,0.03032488,3297.1,3294.4,0.03444794]
[1732313531823,0.55,3296.9,3294.5,0.03034384]
[1732313532094,0.03032488,3296.8,3294.5,0.03034384]
[1732313532292,0.03032488,3296.8,3294.6,0.03444944]
[1732313532896,0.55,3296.6,3294.6,0.03444944]
[1732313533133,0.03032488,3296.5,3294.2,0.1493577]
[1732313533633,0.03032488,3296.5,3294.3,0.03444944]
[1732313534062,0.03032488,3296.5,3294.2,0.1493577]
[1732313534265,0.55,3296.3,3294.2,0.1493577]
[1732313534466,0.03032488,3296.2,3294.2,0.1493577]
[1732313534629,0.03032488,3296.2,3294.3,0.03444944]
[1732313535151,0.03032488,3296.2,3294.2,0.1493577]
[1732313535525,0.03032488,3296.2,3294.3,0.03444944]
[1732313535965,0.03032488,3296.2,3294.2,0.1493577]
[1732313536324,0.03032488,3296.2,3294.3,0.03444944]
[1732313536767,0.03032488,3296.2,3294.2,0.1493577]
[1732313536975,0.03032488,3296.2,3294.3,0.03444944]
[1732313537170,0.03032488,3296.2,3294.2,0.1493577]
[1732313537474,0.03032488,3296.2,3294.3,0.03444944]
[1732313537848,0.03032488,3296.2,3294.2,0.1493577]
[1732313538978,0.7696,3296.1,3294.2,0.1493577]
[1732313539130,0.58032488,3296.0,3294.2,0.1493577]
[1732313539843,0.7696,3296.4,3294.3,0.03034993]
[1732313540036,0.79992488,3296.4,3294.3,0.03034993]
[1732313540238,0.03032488,3296.4,3294.4,0.03444944]
[1732313540474,0.03032488,3296.4,3294.5,0.03034561]
[1732313540776,0.03032488,3297.0,3294.5,0.06500215]
[1732313541379,0.7835,3297.5,3294.7,0.01]
[1732313541380,0.03032488,3297.4,3294.7,0.01]
[1732313541608,0.03032488,3297.4,3294.7,0.03033862]
[1732313541782,0.03032488,3297.4,3294.8,0.03465654]
[1732313541977,0.03032488,3297.4,3294.9,0.03034002]
[1732313542198,0.03032488,3297.4,3294.8,0.06499656]
[1732313544794,0.58032488,3297.4,3294.8,0.06499656]
[1732313545633,0.58032488,3297.4,3294.8,0.03034002]
[1732313545795,0.58032488,3297.4,3294.9,0.03033996]
[1732313546678,0.58032488,3297.4,3295.0,0.03033995]
[1732313547929,0.58032488,3297.4,3294.7,0.03033995]
[1732313548231,0.58032488,3297.4,3294.8,0.03466704]
[1732313548395,0.58032488,3297.4,3294.9,0.03033994]
[1732313548733,0.58032488,3297.4,3295.0,0.03465804]
[1732313549227,0.7835,3297.1,3294.9,0.03033994]
[1732313549377,0.7835,3297.1,3294.5,0.01]
[1732313549378,0.58032488,3297.0,3294.5,0.01]
[1732313549581,0.58032488,3297.0,3294.6,0.03468804]
[1732313549828,0.58032488,3297.0,3294.7,0.03034196]
[1732313550783,0.58032488,3297.0,3294.8,0.03034196]
[1732313551229,0.58032488,3297.0,3294.5,0.01]
[1732313551536,0.58032488,3297.0,3294.5,0.04034196]
[1732313551828,0.03032488,3297.0,3294.6,0.03454394]
[1732313551985,0.55,3297.3,3294.6,0.03454394]
[1732313551986,0.03032488,3297.2,3294.7,0.03034195]
[1732313552498,0.03032488,3297.2,3294.7,0.05034195]
[1732313552696,0.03032488,3297.7,3294.8,0.15748]
[1732313552928,0.03032488,3297.7,3294.9,0.0303373]
[1732313553656,0.03032488,3297.7,3295.0,0.03450343]
[1732313553858,0.58032488,3297.7,3295.1,0.03033737]
[1732313554538,0.58032488,3297.7,3295.2,0.03450343]
[1732313554747,0.58032488,3297.7,3295.3,0.03033738]
[1732313555317,0.58032488,3297.7,3294.8,0.03033738]
[1732313555513,0.58032488,3297.7,3294.8,0.18478318]
[1732313555743,0.58032488,3297.7,3294.9,0.03450343]
[1732313555967,0.58032488,3297.7,3295.0,0.03033739]
[1732313556720,0.58032488,3297.7,3295.1,0.03450343]
[1732313557019,0.03032488,3297.7,3295.2,0.03033765]
[1732313557428,0.03032488,3297.7,3295.3,0.03444344]
[1732313557631,0.03032488,3297.7,3295.4,0.03033526]
[1732313558063,0.03032488,3297.8,3295.5,0.03444344]
[1732313558263,0.03032488,3297.8,3295.6,0.03033337]
[1732313558569,0.03032488,3297.8,3295.6,0.06477531]
[1732313559371,0.58032488,3297.8,3295.6,0.06477531]
[1732313559719,0.58032488,3297.8,3295.6,0.03033337]
[1732313559917,0.58032488,3297.8,3295.7,0.03033335]
[1732313560119,0.58032488,3297.8,3295.7,0.06477529]
[1732313561750,0.58032488,3297.8,3295.8,0.16130947]
[1732313561955,0.58032488,3297.8,3295.9,0.0303307]
[1732313562163,0.58032488,3297.8,3295.9,0.06472465]
[1732313564211,0.121048,3297.9,3295.9,0.06472465]
[1732313564503,0.121048,3297.9,3295.9,0.08472465]
[1732313564688,0.121048,3297.9,3295.9,0.26265595]
[1732313565565,0.55,3297.8,3295.9,0.26265595]
[1732313565967,0.03032488,3297.7,3295.9,0.25265595]
[1732313568024,0.03032488,3297.7,3295.9,0.24265595]
[1732313568381,0.55,3297.8,3295.9,0.24265595]
[1732313568723,0.03032488,3297.7,3295.9,0.24265595]
[1732313569593,0.55,3297.8,3295.9,0.24265595]
[1732313572400,0.55,3297.8,3296.0,0.02]
[1732313572603,0.121048,3297.9,3296.2,0.02]
[1732313572794,0.121048,3297.9,3296.4,0.01]
[1732313572997,0.121048,3297.9,3296.5,0.06432455]
[1732313573396,0.121048,3297.9,3296.6,0.01]
[1732313573731,0.121048,3297.9,3296.8,0.01]
[1732313573935,0.121048,3297.9,3296.9,0.03031777]
[1732313574293,0.121048,3297.9,3297.0,0.03397564]
[1732313574639,0.121048,3297.9,3297.1,0.03031775]
[1732313574820,0.121048,3297.9,3297.2,0.03394268]
[1732313575139,0.121048,3297.9,3297.3,0.03031492]
[1732313575303,0.03032488,3299.9,3297.4,0.01]
[1732313575519,0.120955,3299.8,3297.5,0.0303121]
[1732313575706,0.03032488,3299.7,3297.5,0.0303121]
[1732313576645,0.03032488,3299.7,3297.6,0.03379887]
[1732313576802,0.58032488,3299.7,3297.7,0.03031211]
[1732313577415,0.58032488,3299.7,3297.1,0.03031471]
[1732313577416,1.38872488,3299.7,3297.1,0.03031471]
[1732313577615,1.38872488,3299.7,3297.2,0.03375096]
[1732313577968,1.38872488,3299.7,3297.3,0.03031467]
[1732313578305,1.38872488,3299.7,3297.4,0.03375245]
[1732313578625,1.38872488,3299.7,3297.4,0.03031797]
[1732313578832,0.55,3299.5,3297.4,0.03031797]
[1732313579037,0.03032488,3299.4,3297.4,0.03031797]
[1732313579343,0.55,3299.2,3296.7,0.03031797]
[1732313579560,0.03032488,3299.1,3296.7,0.03031797]
[1732313580206,0.03032488,3299.1,3296.8,0.03032169]
[1732313580913,0.03032488,3299.1,3296.9,0.03387076]
[1732313581108,0.03032488,3299.1,3297.0,0.03031842]
[1732313581309,0.8084,3299.6,3297.0,0.05031842]
[1732313581310,0.03032488,3299.6,3297.0,0.05031842]
[1732313581515,0.03032488,3299.6,3297.0,0.03031842]
[1732313581709,0.03032488,3299.6,3297.1,0.03381235]
[1732313581936,0.03032488,3299.6,3297.2,0.03031669]
[1732313582411,0.03032488,3299.6,3297.3,0.03381235]
[1732313582609,0.03032488,3299.6,3297.4,0.03031393]
[1732313582839,0.03032488,3299.6,3297.5,0.03380187]
[1732313583010,0.58032488,3299.7,3297.6,0.0303139]
[1732313583211,0.03032488,3299.7,3297.6,0.0303139]
[1732313583410,0.15127988,3299.8,3297.7,0.03380187]
[1732313583661,0.15127988,3299.8,3297.8,0.03031218]
[1732313583860,0.120955,3299.8,3297.8,0.03031218]
[1732313584019,0.120955,3299.8,3297.9,0.03376593]
[1732313584214,0.120955,3299.8,3298.0,0.03030835]
[1732313584528,0.120955,3299.8,3298.1,0.03352173]
[1732313584848,0.120955,3299.8,3298.2,0.03030631]
[1732313585453,0.120955,3299.8,3298.3,0.03352173]
[1732313585656,0.120955,3299.8,3298.4,0.03030496]
[1732313585839,0.120955,3299.8,3298.5,0.03352173]
[1732313586047,0.120955,3299.8,3298.6,0.03030496]
[1732313586524,0.55,3299.7,3298.7,0.03352173]
[1732313586724,0.55,3299.7,3298.8,0.03030513]
[1732313587209,0.55,3299.7,3298.1,0.03030515]
[1732313587414,0.55,3299.7,3298.2,0.03352173]
[1732313587607,0.55,3299.7,3298.3,0.0303065]
[1732313588008,0.120955,3299.8,3298.5,0.01]
[1732313588208,0.120955,3299.8,3298.6,0.06382381]
[1732313590148,0.55,3299.7,3298.6,0.06382381]
[1732313590557,0.55,3299.7,3298.6,0.03030208]
[1732313591011,0.55,3299.7,3298.7,0.03030338]
[1732313591778,0.55,3299.7,3298.2,0.04030444]
[1732313592261,0.55,3299.7,3298.3,0.03337953]
[1732313592417,0.55,3299.7,3298.4,0.03030436]
[1732313592818,0.55,3299.7,3298.5,0.03337953]
[1732313593056,0.55,3299.7,3298.6,0.0303032]
[1732313594341,0.55,3299.7,3298.7,0.03337953]
[1732313594544,0.55,3299.7,3298.8,0.0303032]
[1732313594955,0.55,3299.7,3298.3,0.0303031]
[1732313595346,0.55,3299.7,3298.4,0.03337953]
[1732313595543,0.55,3299.7,3298.5,0.03030313]
[1732313596276,0.55,3299.7,3298.6,0.03337953]
[1732313596446,0.55,3299.7,3298.7,0.19395588]
[1732313596881,0.55,3299.7,3298.8,0.03337953]
[1732313597070,0.55,3299.7,3298.9,0.03030316]
[1732313597459,0.55,3299.7,3299.0,0.03319993]
[1732313597673,0.55,3299.7,3299.1,0.03030322]
[1732313598359,0.55,3299.7,3299.2,0.03319993]
[1732313598960,0.55,3299.7,3298.3,0.0303042]
[1732313599294,0.55,3299.7,3298.4,0.19099033]
[1732313599582,0.55,3299.7,3298.5,0.0303042]
[1732313600151,0.55,3299.7,3298.6,0.03319993]
[1732313600350,0.55,3299.7,3298.7,0.0303042]
[1732313600986,0.55,3299.7,3298.8,0.03319993]
[1732313601191,0.55,3299.7,3298.9,0.03030356]
[1732313601687,0.55,3299.7,3299.0,0.03319993]
[1732313601921,0.55,3299.7,3299.1,0.03030351]
[1732313602374,0.55,3299.7,3298.5,0.0303036]
[1732313602891,0.55,3299.7,3298.6,0.03319993]
[1732313603137,0.55,3299.7,3298.7,0.03030384]
[1732313603415,0.120955,3299.8,3298.7,0.03030384]
[1732313603615,0.120955,3299.8,3298.8,1.7227313]
[1732313603775,0.120955,3299.8,3298.9,0.03029791]
[1732313603976,0.120955,3299.8,3298.9,0.06349784]
[1732313605003,0.55,3299.7,3298.9,0.06349784]
[1732313605581,0.120955,3299.8,3298.9,0.06349784]
[1732313605778,0.120955,3299.8,3299.0,0.17862291]
[1732313606006,0.120955,3299.8,3299.1,0.03029681]
[1732313606389,0.120955,3299.8,3299.2,0.03319993]
[1732313606618,0.120955,3299.8,3299.3,0.03029657]
[1732313606944,0.120955,3299.8,3299.3,1.54346357]
[1732313607217,0.120955,3299.8,3299.4,0.18754629]
[1732313607429,0.120955,3299.8,3299.5,0.03029144]
[1732313607983,0.55,3299.7,3299.6,0.03311016]
[1732313608185,0.55,3299.7,3299.6,0.06340426]
[1732313609426,0.120955,3299.8,3299.6,0.06340426]
[1732313611192,0.120955,3299.8,3299.6,0.03311016]
[1732313611394,0.55,3299.7,3299.6,0.03311016]
[1732313611630,0.55,3299.7,3299.6,0.03179758]
[1732313612033,0.55,3299.7,3299.6,0.0318125]
[1732313612244,0.55,3299.7,3299.3,1.503167]
[1732313612543,0.55,3299.7,3299.4,0.0318125]
[1732313613319,0.55,3299.7,3299.5,0.03029804]
[1732313613745,0.55,3299.7,3299.6,0.0318334]
[1732313613962,0.120955,3299.8,3299.6,1.55865531]
[1732313614157,0.120955,3299.8,3299.7,1.56945106]
[1732313614312,0.120955,3299.8,3299.7,1.60126953]
[1732313615514,0.7968,3301.9,3299.7,1.60126953]
[1732313615921,0.7968,3301.8,3299.7,1.60126953]
[1732313616257,0.7968,3301.8,3299.7,1.56945106]
[1732313616436,0.7968,3301.8,3299.9,1.55677946]
[1732313616630,0.55,3301.7,3300.0,1.65050964]
[1732313616834,0.7968,3301.6,3300.0,0.06204285]
[1732313617164,0.55,3301.5,3300.0,0.03028854]
[1732313617466,0.55,3301.5,3300.1,0.03175431]
[1732313617668,0.55,3301.5,3300.2,0.03029036]
[1732313618067,0.55,3301.5,3300.3,0.03175431]
[1732313618267,0.7968,3301.8,3300.4,1.62278267]
[1732313618867,0.7968,3301.8,3300.5,1.58401196]
[1732313619188,0.7968,3301.8,3300.6,0.0302847]
[1732313619642,0.55,3301.7,3300.7,0.03175133]
[1732313619965,0.55,3301.7,3300.8,0.03028537]
[1732313620272,0.7968,3301.8,3300.8,0.03028537]
[1732313620572,0.7968,3301.8,3300.9,1.59968476]
[1732313620801,0.7968,3301.8,3301.0,0.03028323]
[1732313620943,0.7968,3301.8,3301.0,1.53712365]
[1732313621357,0.7968,3301.8,3301.1,0.0316842]
[1732313621592,0.7968,3301.8,3301.2,0.03028264]
[1732313621742,0.55,3301.7,3301.2,0.03028264]
[1732313622165,0.55,3301.7,3301.3,0.0316842]
[1732313622379,0.7968,3301.8,3301.4,0.03028327]
[1732313622881,0.7968,3301.8,3301.5,0.0316842]
[1732313623040,0.7968,3301.8,3301.6,0.03028101]
[1732313623387,0.7968,3301.8,3301.7,0.03138891]
[1732313624984,1.3468,3301.8,3301.7,0.03138891]
[1732313626797,0.48114375,3301.8,3301.7,1.54605279]
[1732313626952,0.7968,3303.3,3301.7,1.95701662]
[1732313627270,0.7968,3303.2,3301.9,1.56052905]
[1732313627474,0.7968,3303.2,3302.0,0.06046732]
[1732313627976,0.7968,3303.2,3302.0,0.47143115]
[1732313628183,0.7968,3303.2,3302.1,1.94092053]
[1732313628388,0.7968,3303.2,3302.3,1.57689714]
[1732313628705,0.7968,3303.2,3302.4,0.03026975]
[1732313628870,0.7968,3303.2,3302.4,0.06038714]
[1732313629862,0.55,3303.1,3302.4,0.06038714]
[1732313630670,0.55,3303.1,3302.4,0.03011739]
[1732313630871,0.21489,3303.0,3302.1,0.03027398]
[1732313631175,0.55,3303.1,3302.2,0.02910198]
[1732313631376,0.55,3303.1,3302.3,0.03027276]
[1732313631797,0.55,3303.1,3302.4,0.02911982]
[1732313631979,0.76489,3303.1,3302.4,0.02911982]
[1732313632298,0.76489,3303.1,3302.5,0.02911834]
[1732313632505,0.55,3303.1,3302.0,0.0302744]
[1732313632699,0.55,3303.1,3302.6,0.02912131]
[1732313632903,0.55,3303.1,3302.0,0.0302744]
[1732313633268,0.55,3303.1,3302.1,0.02914659]
[1732313633474,0.55,3303.1,3301.6,1.59449206]
[1732313633667,0.55,3303.1,3301.8,1.57726988]
[1732313633872,0.55,3303.1,3301.9,0.03027507]
[1732313634184,0.55,3303.1,3302.0,0.02914956]
[1732313634385,0.55,3303.1,3302.1,0.03027509]
[1732313634912,0.55,3303.1,3302.2,0.02916294]
[1732313635270,0.55,3303.1,3301.9,0.03027512]
[1732313635489,0.55,3303.1,3302.0,0.02907518]
[1732313635825,0.55,3303.1,3302.1,0.03027513]
[1732313636379,0.55,3303.1,3302.2,0.02907518]
[1732313636581,0.55,3302.9,3302.2,0.02907518]
[1732313636780,0.55,3302.7,3302.2,0.02907518]
[1732313637088,0.55,3302.7,3301.4,0.03027921]
[1732313637417,0.21489,3303.1,3301.5,0.02812385]
[1732313637418,0.55,3302.5,3301.5,0.02812385]
[1732313637588,0.55,3302.5,3301.6,0.03028051]
[1732313637795,0.55,3302.3,3301.5,0.02812385]
[1732313637992,0.55,3302.3,3301.7,0.02812533]
[1732313638191,0.55,3302.3,3301.0,1.53712249]
[1732313638499,0.55,3302.3,3301.1,0.05846689]
[1732313638818,0.55,3302.3,3301.2,0.03028209]
[1732313639379,0.55,3302.3,3301.3,0.02818482]
[1732313639723,0.55,3302.3,3301.4,0.03028212]
[1732313640424,0.55,3302.3,3301.5,0.02818482]
[1732313642325,0.55,3302.3,3301.5,0.05846577]
[1732313643633,0.55,3302.3,3301.5,0.02818482]
[1732313644135,0.55,3302.3,3301.6,0.02818482]
[1732313644505,0.55,3302.3,3301.1,0.03028106]
[1732313644711,0.55,3302.3,3301.2,0.05846714]
[1732313650852,0.55,3302.3,3301.2,1.55473071]
[1732313651048,0.55,3302.3,3301.3,1.58518969]
[1732313651421,0.55,3302.3,3301.4,0.02828746]
[1732313651629,0.55,3302.3,3301.5,0.03028113]
[1732313652125,0.55,3302.3,3301.6,0.02828746]
[1732313654132,0.55,3302.3,3301.7,0.0302813]
[1732313654622,0.55,3302.3,3301.8,0.02830382]
[1732313655023,0.55,3302.3,3301.4,0.03028126]
[1732313655253,0.55,3302.3,3301.9,0.02830382]
[1732313655557,0.55,3302.3,3302.0,0.02830382]
[1732313655949,0.55,3302.3,3301.4,0.03028126]
[1732313656112,0.55,3302.3,3302.1,0.02830382]
[1732313656312,0.55,3302.3,3300.8,0.0302817]
[1732313656546,0.55,3302.1,3300.3,1.59018733]
[1732313656862,0.55,3302.1,3300.5,1.55226063]
[1732313657070,0.8122,3302.0,3300.7,1.53925749]
[1732313657224,0.55,3301.9,3300.9,1.56800056]
[1732313657428,0.55,3301.9,3301.1,1.56760411]
[1732313657950,0.55,3301.9,3301.2,1.55482441]
[1732313662334,0.55,3301.9,3301.3,0.03028472]
[1732313662754,0.55,3301.9,3301.4,0.0273359]
[1732313662954,0.8122,3302.0,3301.4,0.0273359]
[1732313664146,0.55,3301.9,3301.4,0.0273359]
[1732313664351,0.55,3301.9,3301.2,1.52654589]
[1732313664860,0.55,3301.9,3301.3,0.0273359]
[1732313665033,0.55,3301.9,3301.2,1.52654589]
[1732313665235,0.55,3301.9,3301.3,0.0273359]
[1732313665435,0.55,3301.9,3301.2,1.52654589]
[1732313665658,0.55,3301.9,3301.3,0.0273359]
[1732313665898,0.55,3301.9,3301.2,1.52654589]
[1732313666104,0.55,3301.9,3301.3,0.0273359]
[1732313667961,0.55,3301.9,3301.3,0.05762039]
[1732313668491,0.55,3301.9,3301.3,0.0273359]
[1732313671067,0.549,3301.9,3301.3,0.0273359]
[1732313674805,0.549,3301.9,3301.3,0.05762018]
[1732313676311,0.549,3301.9,3301.3,0.0273359]
[1732313677013,0.549,3301.9,3301.3,0.05762034]
[1732313677514,0.549,3301.9,3301.3,0.0273359]
[1732313678473,0.549,3301.9,3301.3,0.05762035]
[1732313679994,0.549,3301.9,3301.3,0.0273359]
[1732313680316,0.549,3301.9,3301.3,0.05762016]
[1732313680979,0.549,3301.9,3301.3,0.0273359]
[1732313682872,0.549,3301.9,3301.4,1.55480237]
[1732313683077,0.549,3301.9,3301.5,0.0273478]
[1732313684092,0.549,3301.9,3301.5,0.05763217]
[1732313685317,0.7956,3303.0,3301.6,1.59449206]
[1732313685477,0.7956,3303.0,3301.6,1.62477641]
[1732313685679,0.7956,3303.0,3301.7,0.02735078]
[1732313685913,0.7956,3303.0,3301.9,1.56052905]
[1732313686112,0.7956,3303.0,3302.1,1.5299567]
[1732313686412,0.7956,3303.0,3302.3,1.57689714]
[1732313686988,0.55,3302.9,3302.4,0.02735078]
[1732313687192,0.7968,3303.2,3302.4,0.02735078]
[1732313687193,0.55,3302.7,3302.4,0.02735078]
[1732313687406,0.55,3302.7,3300.6,0.03027835]
[1732313687407,0.55,3302.7,3300.9,1.56800056]
[1732313687715,0.55,3302.7,3300.6,0.04027835]
[1732313687716,0.55,3302.7,3301.1,1.56760411]
[1732313687880,0.55,3302.7,3301.3,1.55490851]
[1732313688076,0.55,3302.7,3301.5,1.58234467]
[1732313688435,0.55,3302.7,3301.7,1.51466388]
[1732313688582,0.55,3302.7,3301.9,1.56052905]
[1732313689119,0.55,3302.7,3302.1,1.5299567]
[1732313689320,0.55,3302.7,3300.8,1.58553428]
[1732313689617,0.55,3302.7,3300.6,0.45679717]
[1732313689618,0.55,3302.7,3301.0,1.50684042]
[1732313689826,0.55,3302.5,3301.2,1.52654589]
[1732313690116,0.55,3302.5,3301.4,1.55480237]
[1732313690337,0.55,3302.5,3301.6,1.59449206]
[1732313690484,0.55,3302.5,3301.8,1.57726988]
[1732313690678,0.55,3302.5,3302.0,1.51548613]
[1732313690895,0.55,3302.5,3302.2,1.59312563]
[1732313691091,0.55,3302.5,3301.1,1.56760411]
[1732313691430,0.55,3302.5,3301.3,1.55490851]
[1732313691615,0.55,3302.5,3301.5,1.58234467]
[1732313691824,0.55,3302.5,3301.7,1.51466388]
[1732313692167,0.55,3302.5,3301.9,1.56052905]
[1732313692431,0.55,3302.5,3302.1,1.5299567]
[1732313692928,0.55,3302.5,3302.2,0.02726601]
[1732313693130,0.55,3302.5,3302.3,1.57689714]
[1732313693309,0.55,3302.5,3302.4,0.02726601]
[1732313693512,0.55,3302.5,3301.5,1.58234467]
[1732313693696,0.55,3302.5,3301.7,1.51466388]
[1732313694012,0.55,3302.5,3301.9,1.56052905]
[1732313694221,0.55,3302.5,3302.1,1.5299567]
[1732313694440,0.55,3302.5,3302.3,1.57689714]
[1732313694931,0.7956,3302.6,3302.4,0.02718272]
[1732313695089,0.7956,3302.6,3301.1,1.56760411]
[1732313695297,0.7956,3302.6,3301.3,1.55490851]
[1732313695494,0.7956,3302.6,3301.5,1.58234467]
[1732313695792,0.7956,3302.6,3301.7,1.51466388]
[1732313696002,0.55,3302.5,3301.6,0.02717826]
[1732313696203,0.55,3302.5,3300.6,0.03028023]
[1732313696204,0.55,3302.3,3300.7,1.53925749]
[1732313696409,0.55,3302.1,3301.7,0.04931358]
[1732313696713,0.55,3301.9,3301.8,0.04931358]
[1732313696912,0.55,3301.9,3301.4,1.55480237]
[1732313697169,0.55,3301.5,3300.2,0.03028489]
[1732313697317,0.7906,3301.4,3300.2,0.03028489]
[1732313697522,0.55,3301.3,3300.3,1.59018733]
[1732313697848,0.55,3301.3,3300.5,1.55226063]
[1732313698011,0.55,3301.3,3299.5,0.80178639]
[1732313698012,0.55,3301.3,3300.7,1.53925749]
[1732313698205,0.55,3301.3,3299.7,1.53915976]
[1732313698405,0.55,3301.3,3299.6,0.0302893]
[1732313698406,0.55,3301.3,3299.9,1.55677946]
[1732313698639,0.55,3301.3,3300.1,1.56727998]
[1732313698832,0.55,3301.3,3300.3,1.59018733]
[1732313699139,0.55,3301.3,3300.5,1.55226063]
[1732313699444,0.7906,3301.2,3300.7,1.53925749]
[1732313699628,0.55,3301.1,3300.1,0.03029042]
[1732313699943,0.7906,3301.0,3300.2,1.50275387]
[1732313700143,0.55,3300.9,3300.3,0.03029198]
[1732313700347,0.55,3300.9,3299.8,1.53485387]
[1732313700549,0.55,3300.9,3299.6,0.44679717]
[1732313700550,0.55,3300.9,3300.0,1.58846679]
[1732313700707,0.55,3300.5,3299.1,1.58996022]
[1732313700907,0.55,3300.5,3299.3,1.503167]
[1732313701121,0.55,3300.5,3299.5,1.51256977]
[1732313701446,0.55,3300.3,3299.7,1.53915976]
[1732313702649,0.48198577,3300.3,3299.9,1.55677946]
[1732313702944,0.48198577,3300.3,3300.0,0.03029754]
[1732313703246,0.48198577,3300.3,3299.6,1.52682191]
[1732313703496,0.48198577,3300.3,3299.8,1.53485387]
[1732313704362,0.48198577,3300.3,3299.7,1.53915976]
[1732313704982,0.48198577,3300.3,3299.8,0.03029759]
[1732313705164,0.48198577,3300.3,3299.5,1.51256977]
[1732313705347,0.48198577,3300.3,3299.7,1.53915976]
[1732313705547,0.48198577,3300.3,3299.7,1.56945732]
[1732313705754,0.7906,3300.7,3299.9,1.55677946]
[1732313705943,0.7906,3300.7,3300.1,1.56727998]
[1732313705944,0.55,3300.6,3300.1,1.56727998]
[1732313706138,0.55,3300.6,3298.8,0.01]
[1732313706139,0.55,3300.6,3299.6,1.52682191]
[1732313706339,0.55,3300.6,3299.8,1.53485387]
[1732313706584,0.55,3300.6,3300.0,1.58846679]
[1732313706960,0.55,3300.4,3300.0,1.58846679]
[1732313707143,0.55,3300.4,3298.9,1.55971331]
[1732313707345,0.55,3300.4,3299.1,1.58996022]
[1732313707542,0.55,3300.4,3299.3,1.503167]
[1732313707871,0.7906,3302.4,3299.5,1.51256977]
[1732313708056,0.55,3302.1,3299.7,1.53915976]
[1732313708384,0.55,3302.1,3299.0,0.3953805]
[1732313708385,0.55,3301.6,3299.9,1.55677946]
[1732313708694,0.7906,3301.3,3300.1,1.56727998]
[1732313708857,0.55,3301.0,3300.2,1.53304585]
[1732313709264,0.55,3301.0,3300.3,1.59018733]
[1732313709587,0.55,3301.0,3300.5,1.55226063]
[1732313709758,0.55,3301.0,3299.2,1.5847272]
[1732313710095,0.55,3301.0,3299.4,1.5362641]
[1732313710381,0.55,3301.0,3299.6,1.52682191]
[1732313710548,0.55,3301.0,3299.8,1.53485387]
[1732313710750,0.55,3301.0,3300.0,1.58846679]
[1732313710957,0.55,3301.0,3300.2,1.50275387]
[1732313711160,0.55,3301.0,3300.3,0.03029153]
[1732313711386,0.55,3301.0,3300.4,1.59249231]
[1732313711594,0.55,3301.0,3300.6,1.55952212]
[1732313711777,0.55,3301.0,3299.3,1.503167]
[1732313712105,0.55,3301.0,3299.2,0.04029164]
[1732313712106,0.55,3301.0,3300.8,1.58553428]
[1732313712304,0.55,3301.0,3299.5,1.51256977]
[1732313712452,0.55,3301.0,3300.9,0.02677668]
[1732313712656,0.55,3301.0,3299.7,1.53915976]
[1732313712890,0.55,3301.0,3299.9,1.55677946]
[1732313713093,0.55,3301.0,3300.1,1.56727998]
[1732313713305,0.55,3301.0,3300.3,1.59018733]
[1732313713483,0.55,3301.0,3300.5,1.55226063]
[1732313713793,0.55,3301.0,3300.7,1.53925749]
[1732313714095,0.7906,3301.1,3300.8,1.61582528]
[1732313714295,0.8272,3301.4,3300.8,0.030291]
[1732313714458,0.8272,3301.4,3301.0,1.50684042]
[1732313714659,0.8272,3301.4,3300.9,0.02677668]
[1732313714660,0.8272,3301.4,3301.1,0.03028752]
[1732313714968,0.8272,3301.8,3301.2,0.02677668]
[1732313715354,0.8272,3301.8,3301.3,0.03028418]
[1732313715770,0.8272,3301.8,3301.4,0.02677668]
[1732313715973,0.8272,3301.8,3301.2,0.0302837]
[1732313716310,0.8272,3301.8,3301.5,0.02677668]
[1732313716463,0.8272,3301.8,3301.2,0.03028368]
[1732313716663,0.8272,3301.8,3301.6,0.02677668]
[1732313716890,0.8272,3301.8,3301.2,0.03028368]
[1732313717405,0.8272,3301.8,3301.3,0.02677668]
[1732313717568,0.8272,3301.8,3301.4,0.03028362]
[1732313717761,0.8272,3301.8,3301.4,0.0570603]
[1732313718532,0.7627,3301.6,3301.4,0.02677668]
[1732313718877,0.7627,3301.6,3300.0,1.58846679]
[1732313719083,0.7627,3301.6,3300.2,1.50275387]
[1732313719286,0.7627,3301.6,3300.4,1.59249231]
[1732313719523,0.7627,3301.6,3300.6,1.55952212]
[1732313719675,0.7627,3301.6,3300.7,0.0302864]
[1732313719880,0.7627,3301.6,3300.8,1.58553428]
[1732313720125,0.7627,3301.6,3300.9,0.03028648]
[1732313720423,0.7627,3301.6,3300.9,1.59828704]
[1732313722425,0.55,3301.5,3300.9,1.59828704]
[1732313727018,0.55,3301.5,3300.9,0.03028648]
[1732313727225,0.55,3301.5,3300.9,1.59828704]
[1732313730103,0.7627,3301.6,3300.9,1.59828704]
[1732313730793,0.03032488,3303.1,3300.9,1.59828704]
[1732313730794,0.8082,3303.0,3300.9,1.59828704]
[1732313730995,0.55,3302.7,3300.9,0.03028648]
[1732313731449,0.55,3302.3,3301.0,1.50684042]
[1732313731722,0.55,3302.5,3301.0,1.50684042]
[1732313731723,0.8082,3302.2,3301.1,0.03028113]
[1732313731884,0.55,3302.1,3301.1,0.03028113]
[1732313732688,0.8082,3302.0,3300.1,1.56727998]
[1732313732913,0.8082,3302.0,3300.3,1.59018733]